[Event "Czech Youth U16 Boys 2024"]
[Site "Kouty nad Desnou"]
[Date "2024.03.11"]
[Round "4.6"]
[White "Zrubek, Dan"]
[Black "Setina, Vaclav"]
[Result "0-1"]
[ECO "B39"]
[WhiteElo "1882"]
[BlackElo "2024"]
[Annotator "RC"]
[PlyCount "82"]
[EventDate "2024.03.10"]
[EventType "swiss"]
[EventCountry "CZE"]
[SourceTitle "playchess.com"]
[Source "ChessBase"]
[SourceQuality "1"]
[TimeControl "40/5400+30:1800+30"]

1. e4 {[%emt 0:00:12]} c5 {[%emt 0:00:05]} 2. Nf3 {[%emt 0:00:05]} Nc6 {[%emt 0:00:03]} 3. d4 {[%emt 0:00:45]} cxd4 {[%emt 0:00:02]} 4. Nxd4 {[%emt 0:00:06]} g6 {[%emt 0:00:03]} 5. c4 {[%emt 0:00:59]} Bg7 {[%emt 0:00:05]} 6. Be3 {[%emt 0:01:24]} Nf6 {[%emt 0:00:05]} 7. Nc3 {[%emt 0:00:38]} Ng4 {[%emt 0:00:10]} 8. Qxg4 {[%emt 0:01:21]} Nxd4 {[%emt 0:00:06]} 9. Qd1 {[%emt 0:01:02]} Ne6 {[%emt 0:00:26]} 10. Rc1 {[%emt 0:01:44]} O-O {[%emt 0:00:15]} 11. Bd3 {[%emt 0:01:17]} d6 {[%emt 0:00:20]} 12. O-O {[%emt 0:01:05]} Bd7 {[%emt 0:00:43]} 13. Qd2 {[%emt 0:03:07]} a5 {[%emt 0:00:34]} 14. f4 {[%emt 0:02:03]} Nc5 {[%emt 0:01:40]} 15. Bb1 {[%emt 0:02:28]} f5 {[%emt 0:11:33]} 16. e5 {[%emt 0:15:24]} Be6 {[%emt 0:15:05]} 17. Nb5 {[%emt 0:03:19]} Qb6 {[%emt 0:06:33]} 18. exd6 {[%emt 0:04:25]} Rfd8 {[%emt 0:02:35]} 19. Nc7 {[%emt 0:27:18]} Qxc7 {[%emt 0:15:46]} 20. dxc7 {[%emt 0:00:17]} Rxd2 {[%emt 0:00:08]} 21. Bxd2 {[%emt 0:00:33]} Bxb2 {[%emt 0:01:05]} 22. Rcd1 {[%emt 0:03:47]} Kf7 {[%emt 0:10:47]} 23. Be3 {[%emt 0:03:31]} Nd7 {[%emt 0:01:54]} 24. Rd2 {[%emt 0:03:21]} Ba3 {[%emt 0:02:38]} 25. Rfd1 {[%emt 0:01:40]} Bd6 {[%emt 0:01:11]} 26. Rb2 b6 {[%emt 0:04:18]} 27. Bc2 {[%emt 0:15:36]} Rc8 {[%emt 0:01:43]} 28. Ba4 {[%emt 0:01:09]} Rxc7 {[%emt 0:06:48]} 29. Bxd7 {[%emt 0:00:57]} Rxd7 {[%emt 0:00:05]} 30. Kh1 {[%emt 0:03:14]} Bxc4 {[%emt 0:00:10]} 31. Rxb6 {[%emt 0:02:05]} Bxa2 {[%emt 0:01:11]} 32. Rb5 {[%emt 0:00:45]} a4 {[%emt 0:00:57]} 33. Bc5 {[%emt 0:00:33]} Bb3 {[%emt 0:00:10]} 34. Rd2 {[%emt 0:00:27]} Rc7 {[%emt 0:00:49]} 35. Bg1 {[%emt 0:00:51]} Bxf4 {[%emt 0:00:48]} 36. Re2 {[%emt 0:00:30]} Bc4 {[%emt 0:01:11]} 37. Rb4 {[%emt 0:00:08]} Bd6 {[%emt 0:00:52]} 38. Rxc4 {[%emt 0:00:26]} Rxc4 {[%emt 0:00:05]} 39. Ra2 {[%emt 0:00:05]} Rc1 {[%emt 0:00:14]} 40. g3 {[%emt 0:00:06]} Bc5 {[%emt 0:00:15]} 41. Rg2 {[%emt 0:30:04]} a3 {[%emt 0:30:16]} 0-1

[Event "Czech Youth U16 Boys 2024"]
[Site "Kouty nad Desnou"]
[Date "2024.03.11"]
[Round "4.7"]
[White "Mikolas, Petr"]
[Black "Ulcak, Michael"]
[Result "1/2-1/2"]
[ECO "C47"]
[WhiteElo "1957"]
[BlackElo "1929"]
[Annotator "RC"]
[PlyCount "68"]
[EventDate "2024.03.10"]
[EventType "swiss"]
[EventCountry "CZE"]
[SourceTitle "playchess.com"]
[Source "ChessBase"]
[SourceQuality "1"]
[TimeControl "40/5400+30:1800+30"]

1. e4 {[%emt 0:00:03]} e5 {[%emt 0:00:26]} 2. Nc3 {[%emt 0:00:17]} Nc6 {[%emt 0:00:53]} 3. Nf3 {[%emt 0:00:41]} Nf6 {[%emt 0:00:27]} 4. d4 {[%emt 0:01:14]} exd4 {[%emt 0:00:11]} 5. Nxd4 {[%emt 0:00:03]} Bb4 {[%emt 0:00:17]} 6. Nxc6 {[%emt 0:00:31]} bxc6 {[%emt 0:00:42]} 7. Bd3 {[%emt 0:00:58]} d5 {[%emt 0:01:16]} 8. e5 {[%emt 0:10:39]} Nd7 {[%emt 0:10:33]} 9. O-O {[%emt 0:01:08]} O-O {[%emt 0:01:30]} 10. f4 {[%emt 0:19:12]} Nc5 {[%emt 0:02:39]} 11. Qh5 {[%emt 0:04:28]} Nxd3 {[%emt 0:04:11]} 12. cxd3 {[%emt 0:00:04]} g6 {[%emt 0:01:34]} 13. Qd1 {[%emt 0:08:03]} Qh4 {[%emt 0:11:14]} 14. Be3 {[%emt 0:03:47]} Ba6 {[%emt 0:10:40]} 15. Rf3 {[%emt 0:08:53]} Bc8 {[%emt 0:01:30]} 16. Qa4 {[%emt 0:01:30]} Bxc3 {[%emt 0:09:42]} 17. bxc3 {[%emt 0:00:01]} Bd7 {[%emt 0:01:32]} 18. Bxa7 {[%emt 0:09:13]} Rfb8 {[%emt 0:02:34]} 19. Qd4 {[%emt 0:00:11]} Rb7 {[%emt 0:02:19]} 20. Bc5 {[%emt 0:00:08]} Rab8 {[%emt 0:01:14]} 21. Bb4 {[%emt 0:02:42]} Rb5 {[%emt 0:02:14]} 22. a4 {[%emt 0:04:18]} c5 {[%emt 0:01:23]} 23. Qxd5 {[%emt 0:00:10]} Be6 {[%emt 0:00:45]} 24. Qc6 {[%emt 0:00:19]} Qd8 {[%emt 0:01:48]} 25. axb5 {[%emt 0:00:47]} cxb4 {[%emt 0:00:21]} 26. Qc5 {[%emt 0:03:23]} bxc3 {[%emt 0:01:04]} 27. Qxc3 {[%emt 0:04:44]} Rxb5 {[%emt 0:00:53]} 28. h3 {[%emt 0:03:18]} Rb3 {[%emt 0:01:03]} 29. Qc5 {[%emt 0:00:19]} h5 {[%emt 0:01:27]} 30. Ra7 {[%emt 0:02:14]} Rxd3 {[%emt 0:00:56]} 31. Rxd3 {[%emt 0:00:11]} Qxd3 {[%emt 0:00:04]} 32. Ra8+ {[%emt 0:00:09]} Kh7 {[%emt 0:00:17]} 33. Qf8 {[%emt 0:00:06]} Qe3+ {[%emt 0:00:42]} 34. Kh1 {[%emt 0:00:08]} Qc1+ {[%emt 0:00:20]} 1/2-1/2

[Event "Czech Youth U16 Boys 2024"]
[Site "Kouty nad Desnou"]
[Date "2024.03.11"]
[Round "4.8"]
[White "Rybackova, Lucie"]
[Black "Buchta, Bartolomej"]
[Result "1/2-1/2"]
[ECO "A00"]
[WhiteElo "1983"]
[BlackElo "1913"]
[Annotator "RC"]
[PlyCount "80"]
[EventDate "2024.03.10"]
[EventType "swiss"]
[EventCountry "CZE"]
[SourceTitle "playchess.com"]
[Source "ChessBase"]
[SourceQuality "1"]
[TimeControl "40/5400+30:1800+30"]

1. g3 {[%emt 0:00:03]} Nf6 {[%emt 0:00:24]} 2. Bg2 {[%emt 0:00:14]} e6 {[%emt 0:01:15]} 3. c4 {[%emt 0:00:19]} a6 {[%emt 0:00:47]} 4. b3 {[%emt 0:01:50]} d5 {[%emt 0:05:59]} 5. Nf3 {[%emt 0:04:22]} b5 {[%emt 0:01:32]} 6. Ne5 {[%emt 0:08:40]} Bb7 {[%emt 0:01:14]} 7. O-O {[%emt 0:00:38]} Nbd7 {[%emt 0:01:45]} 8. Bb2 {[%emt 0:02:54]} h5 {[%emt 0:05:02]} 9. h4 {[%emt 0:18:36]} Bd6 {[%emt 0:12:13]} 10. d4 {[%emt 0:02:18]} c6 {[%emt 0:10:27]} 11. Nxd7 {[%emt 0:21:58]} Nxd7 {[%emt 0:02:06]} 12. c5 {[%emt 0:01:20]} Be7 {[%emt 0:03:05]} 13. Nd2 {[%emt 0:06:38]} g5 {[%emt 0:00:28]} 14. hxg5 {[%emt 0:01:37]} Bxg5 {[%emt 0:00:28]} 15. Nf3 {[%emt 0:10:48]} Bf6 {[%emt 0:08:52]} 16. Ne5 {[%emt 0:03:24]} Bxe5 {[%emt 0:03:37]} 17. dxe5 {[%emt 0:00:08]} Nxc5 {[%emt 0:00:07]} 18. Rc1 {[%emt 0:00:43]} Nd7 {[%emt 0:00:14]} 19. e4 {[%emt 0:01:01]} Nb6 {[%emt 0:06:50]} 20. exd5 {[%emt 0:03:37]} Nxd5 {[%emt 0:00:11]} 21. Bxd5 {[%emt 0:00:44]} cxd5 {[%emt 0:00:23]} 22. Qd4 {[%emt 0:00:37]} h4 {[%emt 0:01:35]} 23. Kg2 {[%emt 0:01:23]} Rg8 {[%emt 0:17:37]} 24. Rc3 {[%emt 0:04:00]} b4 {[%emt 0:05:20]} 25. Rf3 {[%emt 0:01:41]} a5 {[%emt 0:01:17]} 26. Rc1 {[%emt 0:01:22]} Qe7 {[%emt 0:03:13]} 27. Rc2 {[%emt 0:01:45]} Rg6 {[%emt 0:01:42]} 28. Rf4 {[%emt 0:00:41]} hxg3 {[%emt 0:00:46]} 29. fxg3 {[%emt 0:00:02]} Kf8 {[%emt 0:01:22]} 30. Rcf2 {[%emt 0:00:24]} Kg7 {[%emt 0:01:27]} 31. Rxf7+ {[%emt 0:00:55]} Qxf7 {[%emt 0:00:06]} 32. Rxf7+ {[%emt 0:00:05]} Kxf7 {[%emt 0:00:02]} 33. Qb6 {[%emt 0:00:07]} Ba6 {[%emt 0:01:49]} 34. Qc7+ {[%emt 0:00:16]} Kg8 {[%emt 0:00:50]} 35. Qc6 {[%emt 0:00:35]} Rc8 {[%emt 0:00:36]} 36. Qxa6 {[%emt 0:00:37]} Rc2+ {[%emt 0:00:12]} 37. Kf3 {[%emt 0:00:19]} Rxb2 {[%emt 0:00:12]} 38. Qc8+ {[%emt 0:00:23]} Kh7 {[%emt 0:00:50]} 39. Qd7+ {[%emt 0:00:19]} Kh6 {[%emt 0:00:42]} 40. Qc8 {[%emt 0:00:43]} Kh7 {[%emt 0:02:03]} 1/2-1/2

[Event "Czech Youth U16 Boys 2024"]
[Site "Kouty nad Desnou"]
[Date "2024.03.11"]
[Round "4.9"]
[White "Stein, Michael"]
[Black "Zelba, Lukas"]
[Result "1/2-1/2"]
[ECO "B00"]
[WhiteElo "1883"]
[BlackElo "1979"]
[Annotator "RC"]
[PlyCount "72"]
[EventDate "2024.03.10"]
[EventType "swiss"]
[EventCountry "CZE"]
[SourceTitle "playchess.com"]
[Source "ChessBase"]
[SourceQuality "1"]
[TimeControl "40/5400+30:1800+30"]

1. e4 {[%emt 0:00:07]} b6 {[%emt 0:00:09]} 2. d4 {[%emt 0:00:12]} Bb7 {[%emt 0:00:02]} 3. Nc3 {[%emt 0:00:25]} e6 {[%emt 0:00:22]} 4. Bd3 {[%emt 0:00:51]} Nf6 {[%emt 0:02:40]} 5. Nf3 {[%emt 0:04:41]} Bb4 {[%emt 0:04:12]} 6. Qe2 {[%emt 0:02:08]} d5 {[%emt 0:00:27]} 7. e5 {[%emt 0:04:53]} Ne4 {[%emt 0:02:12]} 8. Bd2 {[%emt 0:02:08]} Nxd2 {[%emt 0:03:00]} 9. Qxd2 {[%emt 0:01:17]} Nd7 {[%emt 0:03:59]} 10. a3 {[%emt 0:01:22]} Be7 {[%emt 0:02:25]} 11. Ne2 {[%emt 0:03:20]} c5 {[%emt 0:03:18]} 12. c3 {[%emt 0:02:26]} a5 {[%emt 0:00:30]} 13. O-O {[%emt 0:03:57]} Ba6 {[%emt 0:00:56]} 14. Bxa6 {[%emt 0:04:25]} Rxa6 {[%emt 0:00:18]} 15. a4 {[%emt 0:01:40]} O-O {[%emt 0:00:36]} 16. Ng3 {[%emt 0:01:42]} Ra7 {[%emt 0:05:30]} 17. Ne1 {[%emt 0:04:49]} cxd4 {[%emt 0:04:44]} 18. cxd4 {[%emt 0:00:52]} b5 {[%emt 0:01:35]} 19. axb5 {[%emt 0:03:03]} Qb6 {[%emt 0:01:43]} 20. f4 {[%emt 0:04:34]} g6 {[%emt 0:12:30]} 21. Ne2 {[%emt 0:07:51]} Rc8 {[%emt 0:06:24]} 22. Rf3 {[%emt 0:06:23]} Bb4 {[%emt 0:03:43]} 23. Nc3 {[%emt 0:06:06]} Rac7 {[%emt 0:00:58]} 24. g4 {[%emt 0:05:00]} Rc4 {[%emt 0:06:49]} 25. Nc2 {[%emt 0:01:53]} f5 {[%emt 0:03:17]} 26. gxf5 {[%emt 0:02:21]} exf5 {[%emt 0:00:08]} 27. Re1 {[%emt 0:05:52]} Qe6 {[%emt 0:08:15]} 28. Ree3 {[%emt 0:05:36]} Nb6 {[%emt 0:01:53]} 29. Qg2 {[%emt 0:02:41]} R4c7 {[%emt 0:02:13]} 30. Na3 {[%emt 0:01:32]} Qe7 {[%emt 0:03:15]} 31. Nab1 {[%emt 0:02:16]} Bxc3 {[%emt 0:02:06]} 32. Nxc3 {[%emt 0:00:47]} Qb4 {[%emt 0:00:35]} 33. Rd3 {[%emt 0:01:04]} Rc4 {[%emt 0:00:40]} 34. Qd2 {[%emt 0:01:04]} Kf7 {[%emt 0:03:31]} 35. Rh3 {[%emt 0:02:01]} Kg8 {[%emt 0:01:13]} 36. Rhf3 {[%emt 0:00:13]} Kg7 {[%emt 0:03:06]} 1/2-1/2

[Event "Czech Youth U16 Boys 2024"]
[Site "Kouty nad Desnou"]
[Date "2024.03.11"]
[Round "4.10"]
[White "Vysinsky, Otakar"]
[Black "Pressler, Tobias"]
[Result "1-0"]
[ECO "C01"]
[WhiteElo "1882"]
[BlackElo "1954"]
[Annotator "RC"]
[PlyCount "69"]
[EventDate "2024.03.10"]
[EventType "swiss"]
[EventCountry "CZE"]
[SourceTitle "playchess.com"]
[Source "ChessBase"]
[SourceQuality "1"]
[TimeControl "40/5400+30:1800+30"]

1. e4 {[%emt 0:00:06]} e6 {[%emt 0:00:05]} 2. d4 {[%emt 0:00:21]} d5 {[%emt 0:00:13]} 3. exd5 {[%emt 0:00:21]} exd5 {[%emt 0:00:05]} 4. Nf3 {[%emt 0:00:21]} Bd6 {[%emt 0:01:09]} 5. Bd3 {[%emt 0:00:59]} Bg4 {[%emt 0:01:47]} 6. O-O {[%emt 0:02:36]} Nc6 {[%emt 0:00:23]} 7. c3 {[%emt 0:01:33]} Qd7 {[%emt 0:00:17]} 8. Be3 {[%emt 0:01:57]} Nge7 {[%emt 0:00:30]} 9. Re1 {[%emt 0:03:36]} O-O-O {[%emt 0:00:45]} 10. b4 {[%emt 0:04:47]} h5 {[%emt 0:09:09]} 11. Nbd2 {[%emt 0:09:41]} h4 {[%emt 0:01:16]} 12. Qa4 {[%emt 0:08:02]} a6 {[%emt 0:18:21]} 13. Qc2 {[%emt 0:07:00]} Bf5 {[%emt 0:01:32]} 14. a4 {[%emt 0:03:03]} f6 {[%emt 0:02:43]} 15. b5 {[%emt 0:03:21]} axb5 {[%emt 0:19:22]} 16. axb5 {[%emt 0:00:17]} Nb8 {[%emt 0:00:05]} 17. Ra8 {[%emt 0:11:12]} Bxd3 {[%emt 0:00:19]} 18. Qxd3 {[%emt 0:00:20]} g5 {[%emt 0:00:19]} 19. Rea1 {[%emt 0:01:21]} g4 {[%emt 0:00:19]} 20. Ne1 {[%emt 0:05:27]} Rdg8 {[%emt 0:04:33]} 21. Qb1 {[%emt 0:04:03]} c6 {[%emt 0:01:51]} 22. bxc6 {[%emt 0:00:57]} Qxc6 {[%emt 0:03:27]} 23. c4 {[%emt 0:06:23]} Qc7 {[%emt 0:04:32]} 24. cxd5 {[%emt 0:02:13]} Bxh2+ {[%emt 0:02:30]} 25. Kh1 {[%emt 0:00:05]} Rh5 {[%emt 0:07:06]} 26. R1a5 {[%emt 0:05:24]} Bd6 {[%emt 0:00:55]} 27. Ne4 {[%emt 0:00:34]} Rxd5 {[%emt 0:03:41]} 28. Rxd5 {[%emt 0:03:40]} Nxd5 {[%emt 0:00:07]} 29. Nxd6+ {[%emt 0:01:29]} Qxd6 {[%emt 0:00:07]} 30. Qf5+ {[%emt 0:01:27]} Kd8 {[%emt 0:04:33]} 31. Rxb8+ {[%emt 0:01:03]} Qxb8 {[%emt 0:00:04]} 32. Qxd5+ {[%emt 0:00:08]} Ke7 {[%emt 0:00:03]} 33. Bd2 {[%emt 0:02:51]} Kf8 {[%emt 0:02:23]} 34. Qd7 {[%emt 0:02:53]} Rg6 {[%emt 0:01:05]} 35. Qh7 {[%emt 0:00:45]} 1-0

[Event "Czech Youth U16 Boys 2024"]
[Site "Kouty nad Desnou"]
[Date "2024.03.11"]
[Round "4.11"]
[White "Dvorak, Jan"]
[Black "Zemek, Antonin"]
[Result "0-1"]
[ECO "C01"]
[WhiteElo "2154"]
[BlackElo "1870"]
[Annotator "RC"]
[PlyCount "54"]
[EventDate "2024.03.10"]
[EventType "swiss"]
[EventCountry "CZE"]
[SourceTitle "playchess.com"]
[Source "ChessBase"]
[SourceQuality "1"]
[TimeControl "40/5400+30:1800+30"]

1. e4 {[%emt 0:00:05]} e6 {[%emt 0:00:36]} 2. d4 {[%emt 0:00:04]} d5 {[%emt 0:00:24]} 3. exd5 {[%emt 0:00:16]} exd5 {[%emt 0:00:12]} 4. c4 {[%emt 0:00:06]} Bb4+ {[%emt 0:01:49]} 5. Nc3 {[%emt 0:00:06]} Nf6 {[%emt 0:01:14]} 6. Nf3 {[%emt 0:00:28]} Nc6 {[%emt 0:01:25]} 7. Be3 {[%emt 0:01:56]} O-O {[%emt 0:05:11]} 8. Bd3 {[%emt 0:01:06]} Bg4 {[%emt 0:04:27]} 9. a3 {[%emt 0:20:44]} Bxc3+ {[%emt 0:06:22]} 10. bxc3 {[%emt 0:00:40]} dxc4 {[%emt 0:06:45]} 11. Bxc4 {[%emt 0:00:15]} Ne7 {[%emt 0:07:16]} 12. O-O {[%emt 0:03:17]} Ned5 {[%emt 0:02:14]} 13. Bxd5 {[%emt 0:10:02]} Qxd5 {[%emt 0:01:03]} 14. Qe2 {[%emt 0:03:31]} Rfe8 {[%emt 0:04:15]} 15. Rab1 {[%emt 0:04:57]} Qe4 {[%emt 0:07:00]} 16. Qb2 {[%emt 0:13:51]} Bxf3 {[%emt 0:04:52]} 17. gxf3 {[%emt 0:00:30]} Qg6+ {[%emt 0:06:03]} 18. Kh1 {[%emt 0:00:55]} b6 {[%emt 0:00:10]} 19. c4 {[%emt 0:04:30]} Qh5 {[%emt 0:01:49]} 20. Qe2 {[%emt 0:02:28]} Re4 {[%emt 0:10:30]} 21. Rb5 {[%emt 0:07:08]} c5 {[%emt 0:00:52]} 22. Rg1 {[%emt 0:00:49]} Rh4 {[%emt 0:03:36]} 23. Rg2 {[%emt 0:00:40]} Ne4 {[%emt 0:03:26]} 24. dxc5 {[%emt 0:08:00]} Nc3 {[%emt 0:05:08]} 25. Qb2 {[%emt 0:00:54]} Qxf3 {[%emt 0:00:24]} 26. Qc1 {[%emt 0:13:55]} Ne2 {[%emt 0:01:10]} 27. Qa1 {[%emt 0:01:41]} Rxh2+ {[%emt 0:00:09]} 0-1

[Event "Czech Youth U16 Boys 2024"]
[Site "Kouty nad Desnou"]
[Date "2024.03.11"]
[Round "4.12"]
[White "Zezula, Matej"]
[Black "Tegda, Vojtech"]
[Result "1-0"]
[ECO "C88"]
[WhiteElo "1825"]
[BlackElo "1936"]
[Annotator "RC"]
[PlyCount "79"]
[EventDate "2024.03.10"]
[EventType "swiss"]
[EventCountry "CZE"]
[SourceTitle "playchess.com"]
[Source "ChessBase"]
[SourceQuality "1"]
[TimeControl "40/5400+30:1800+30"]

1. e4 {[%emt 0:00:05]} e5 {[%emt 0:00:06]} 2. Nf3 {[%emt 0:00:08]} Nc6 {[%emt 0:00:24]} 3. Bb5 {[%emt 0:00:13]} a6 {[%emt 0:00:26]} 4. Ba4 {[%emt 0:00:30]} Nf6 {[%emt 0:00:33]} 5. O-O {[%emt 0:00:53]} b5 {[%emt 0:00:29]} 6. Bb3 {[%emt 0:00:10]} Be7 {[%emt 0:01:33]} 7. Re1 {[%emt 0:00:27]} d6 {[%emt 0:00:32]} 8. h3 {[%emt 0:06:28]} Na5 {[%emt 0:05:17]} 9. c3 {[%emt 0:01:32]} Nxb3 {[%emt 0:01:04]} 10. axb3 {[%emt 0:00:16]} O-O {[%emt 0:05:56]} 11. d4 {[%emt 0:00:25]} exd4 {[%emt 0:01:28]} 12. cxd4 {[%emt 0:00:29]} Bb7 {[%emt 0:01:31]} 13. Nbd2 {[%emt 0:00:53]} Re8 {[%emt 0:02:42]} 14. Qc2 {[%emt 0:01:20]} Bf8 {[%emt 0:10:52]} 15. Nh2 {[%emt 0:04:38]} c5 {[%emt 0:04:45]} 16. dxc5 {[%emt 0:05:06]} dxc5 {[%emt 0:00:20]} 17. e5 {[%emt 0:00:47]} Nd5 {[%emt 0:02:36]} 18. Ndf3 {[%emt 0:00:27]} Nb4 {[%emt 0:02:39]} 19. Qc3 {[%emt 0:01:52]} Qb6 {[%emt 0:06:04]} 20. Be3 {[%emt 0:02:52]} Nd5 {[%emt 0:01:49]} 21. Qc2 {[%emt 0:01:38]} Nb4 {[%emt 0:11:51]} 22. Qc3 {[%emt 0:02:57]} Qg6 {[%emt 0:01:03]} 23. Rad1 {[%emt 0:01:34]} Nd5 {[%emt 0:03:21]} 24. Qc1 {[%emt 0:01:21]} Nxe3 {[%emt 0:06:49]} 25. Qxe3 {[%emt 0:00:32]} Rad8 {[%emt 0:00:42]} 26. Ng4 {[%emt 0:03:13]} Qc2 {[%emt 0:04:55]} 27. Rxd8 {[%emt 0:01:26]} Rxd8 {[%emt 0:00:15]} 28. e6 {[%emt 0:02:49]} fxe6 {[%emt 0:03:44]} 29. Qxe6+ {[%emt 0:00:17]} Kh8 {[%emt 0:00:02]} 30. Nfe5 {[%emt 0:13:10]} Bd5 {[%emt 0:01:16]} 31. Nf7+ {[%emt 0:01:03]} Kg8 {[%emt 0:00:07]} 32. Ngh6+ {[%emt 0:01:24]} gxh6 {[%emt 0:00:10]} 33. Nxh6+ {[%emt 0:00:16]} Kg7 {[%emt 0:00:43]} 34. Nf5+ {[%emt 0:00:14]} Kh8 {[%emt 0:00:47]} 35. Qf6+ {[%emt 0:00:16]} Kg8 {[%emt 0:00:18]} 36. Nh6+ {[%emt 0:00:31]} Bxh6 {[%emt 0:00:12]} 37. Qxd8+ {[%emt 0:00:10]} Kg7 {[%emt 0:01:12]} 38. Qxd5 {[%emt 0:00:39]} Bf4 {[%emt 0:00:45]} 39. Re7+ {[%emt 0:02:17]} Kh6 {[%emt 0:00:19]} 40. Re6+ {[%emt 0:00:33]} 1-0

[Event "Czech Youth U16 Boys 2024"]
[Site "Kouty nad Desnou"]
[Date "2024.03.12"]
[Round "5.1"]
[White "Hladky, Tadeas"]
[Black "Jasso, Matej"]
[Result "1/2-1/2"]
[ECO "B50"]
[WhiteElo "2056"]
[BlackElo "2060"]
[Annotator "RC"]
[PlyCount "60"]
[EventDate "2024.03.10"]
[EventType "swiss"]
[EventCountry "CZE"]
[SourceTitle "playchess.com"]
[Source "ChessBase"]
[SourceQuality "1"]
[TimeControl "40/5400+30:1800+30"]

1. e4 {[%emt 0:00:14]} c5 {[%emt 0:00:22]} 2. Nf3 {[%emt 0:00:10]} d6 {[%emt 0:00:41]} 3. c3 {[%emt 0:00:10]} Nf6 {[%emt 0:00:17]} 4. Be2 {[%emt 0:00:08]} Nc6 {[%emt 0:00:06]} 5. d4 {[%emt 0:00:16]} cxd4 {[%emt 0:00:09]} 6. cxd4 {[%emt 0:00:07]} d5 {[%emt 0:08:31]} 7. e5 {[%emt 0:02:37]} Ne4 {[%emt 0:00:13]} 8. O-O {[%emt 0:01:38]} Bg4 {[%emt 0:01:01]} 9. Qb3 {[%emt 0:02:54]} Qd7 {[%emt 0:01:41]} 10. Be3 {[%emt 0:03:36]} e6 {[%emt 0:00:22]} 11. h3 {[%emt 0:03:54]} Bh5 {[%emt 0:01:53]} 12. Rc1 {[%emt 0:19:18]} Be7 {[%emt 0:01:47]} 13. Nc3 {[%emt 0:08:20]} O-O {[%emt 0:02:34]} 14. Ne1 {[%emt 0:09:31]} Bxe2 {[%emt 0:02:38]} 15. Nxe2 {[%emt 0:00:07]} Na5 {[%emt 0:00:27]} 16. Qd3 {[%emt 0:00:40]} f6 {[%emt 0:06:00]} 17. f3 {[%emt 0:07:34]} Ng5 {[%emt 0:02:16]} 18. Bxg5 {[%emt 0:11:59]} fxg5 {[%emt 0:00:14]} 19. Qc3 {[%emt 0:06:17]} Nc6 {[%emt 0:06:57]} 20. Nd3 {[%emt 0:00:25]} Rac8 {[%emt 0:00:21]} 21. Qd2 {[%emt 0:01:00]} Rc7 {[%emt 0:03:16]} 22. Rc2 {[%emt 0:01:48]} Rfc8 {[%emt 0:00:21]} 23. Rac1 {[%emt 0:00:15]} Nd8 {[%emt 0:00:29]} 24. Rxc7 {[%emt 0:01:58]} Rxc7 {[%emt 0:00:09]} 25. Kf2 {[%emt 0:04:24]} Rxc1 {[%emt 0:01:33]} 26. Qxc1 {[%emt 0:00:11]} Qc6 {[%emt 0:00:17]} 27. Qc3 {[%emt 0:00:48]} b6 {[%emt 0:05:12]} 28. Qxc6 {[%emt 0:02:55]} Nxc6 {[%emt 0:00:11]} 29. Ke3 {[%emt 0:00:14]} Kf7 {[%emt 0:01:05]} 30. g3 {[%emt 0:04:22]} Na5 {[%emt 0:04:07]} 1/2-1/2